fUST/lending_fUST_20250419
["ID","MTS","AMOUNT","RATE_DAILY","PERIOD"]
[358372082,1745009443626,-460.437239,0.00021917,2]
[358372083,1745009443635,-460.437239,0.00021917,2]
[358372084,1745009443645,-460.437239,0.00021917,2]
[358372085,1745009443655,-500.0,0.00021917,2]
[358372086,1745009443664,-500.0,0.00021917,2]
[358372087,1745009443674,-500.0,0.00021917,2]
[358372088,1745009443684,-500.0,0.00021917,2]
[358372089,1745009443694,-500.0,0.00021917,2]
[358372090,1745009443704,-500.0,0.00021917,2]
[358372091,1745009443713,-658.59,0.00021917,2]
[358372092,1745009443723,-797.86,0.00021917,2]
[358372093,1745009443732,-500.0,0.00021917,2]
[358372094,1745009443742,-500.0,0.00021917,2]
[358372095,1745009443751,-1407.56,0.00021917,2]
[358372096,1745009443760,-500.0,0.00021917,2]
[358372097,1745009443769,-500.0,0.00021917,2]
[358372098,1745009443779,-641.26,0.00021917,2]
[358372099,1745009443788,-500.0,0.00021917,2]
[358372100,1745009443797,-695.13,0.00021917,2]
[358372101,1745009443807,-500.0,0.00021917,2]
[358372102,1745009443816,-1771.28,0.00021917,2]
[358372103,1745009443825,-500.0,0.00021917,2]
[358372104,1745009443834,-500.0,0.00021917,2]
[358372105,1745009443844,-500.0,0.00021917,2]
[358372106,1745009443853,-928.93,0.00021917,2]
[358372107,1745009443865,-763.31,0.00021917,2]
[358372108,1745009443874,-732.13,0.00021917,2]
[358372109,1745009443884,-590.02,0.00021917,2]
[358372110,1745009443893,-1238.23,0.00021917,2]
[358372111,1745009443903,-1103.61,0.00021917,2]
[358372112,1745009443913,-500.0,0.00021917,2]
[358372113,1745009443922,-500.0,0.00021917,2]
[358372114,1745009443931,-1459.07,0.00021917,2]
[358372115,1745009443940,-703.26,0.00021917,2]
[358372116,1745009443949,-500.0,0.00021917,2]
[358372117,1745009443959,-883.88,0.00021917,2]
[358372118,1745009443969,-500.0,0.00021917,2]
[358372119,1745009443978,-4355.55,0.00021917,2]
[358372120,1745009443988,-500.0,0.00021917,2]
[358372121,1745009443997,-801.44,0.00021917,2]
[358372122,1745009444006,-151.0,0.00021917,2]
[358372123,1745009444015,-151.0,0.00021917,2]
[358372124,1745009444025,-151.0,0.00021917,2]
[358372125,1745009444034,-500.0,0.00021917,2]
[358372126,1745009444044,-500.0,0.00021917,2]
[358372127,1745009444053,-500.0,0.00021917,2]
[358372128,1745009444063,-500.0,0.00021917,2]
[358372129,1745009444073,-616.51,0.00021917,2]
[358372130,1745009444082,-500.0,0.00021917,2]
[358372131,1745009444092,-1000.0,0.00021917,2]
[358372132,1745009444101,-500.0,0.00021917,2]
[358372133,1745009444111,-500.0,0.00021917,2]
[358372134,1745009444121,-500.0,0.00021917,2]
[358372135,1745009444130,-500.0,0.00021917,2]
[358372136,1745009444140,-578.72867931,0.00021917,2]
[358372137,1745009444149,-833.57,0.00021917,2]
[358372138,1745009444159,-500.0,0.00021917,2]
[358372139,1745009444169,-500.0,0.00021917,2]
[358372140,1745009444179,-500.0,0.00021917,2]
[358372141,1745009444188,-567.64,0.00021917,2]
[358372142,1745009444198,-151.0,0.00021917,2]
[358372143,1745009444208,-151.0,0.00021917,2]
[358372144,1745009444217,-155.712246,0.00021917,2]
[358372145,1745009444227,-843.0,0.00021917,2]
[358372146,1745009444236,-593.64,0.00021917,2]
[358372147,1745009444247,-500.0,0.00021917,2]
[358372148,1745009444256,-500.0,0.00021917,2]
[358372149,1745009444266,-500.0,0.00021917,2]
[358372150,1745009444275,-500.0,0.00021917,2]
[358372151,1745009444285,-1247.67,0.00021917,2]
[358372152,1745009444295,-910.6,0.00021917,2]
[358372153,1745009444304,-500.0,0.00021917,2]
[358372154,1745009444314,-500.0,0.00021917,2]
[358372155,1745009444324,-500.0,0.00021917,2]
[358372156,1745009444333,-500.0,0.00021917,2]
[358372157,1745009444343,-500.0,0.00021917,2]
[358372158,1745009444352,-507.25778367,0.00021917,2]
[358372159,1745009444362,-500.0,0.00021917,2]
[358372160,1745009444372,-151.0,0.00021917,2]
[358372161,1745009444381,-151.0,0.00021917,2]
[358372162,1745009444391,-534.71,0.00021917,2]
[358372163,1745009444401,-151.0,0.00021917,2]
[358372164,1745009444410,-500.0,0.00021917,2]
[358372165,1745009444420,-500.0,0.00021917,2]
[358372166,1745009444429,-530.68,0.00021917,2]
[358372167,1745009444439,-894.03,0.00021917,2]
[358372168,1745009444448,-500.0,0.00021917,2]
[358372169,1745009444457,-500.0,0.00021917,2]
[358372170,1745009444468,-804.16,0.00021917,2]
[358372171,1745009444477,-682.89,0.00021917,2]
[358372172,1745009444486,-500.0,0.00021917,2]
[358372173,1745009444496,-500.0,0.00021917,2]
[358372174,1745009444505,-500.0,0.00021917,2]
[358372175,1745009444515,-500.0,0.00021917,2]
[358372176,1745009444525,-1348.03,0.00021917,2]
[358372177,1745009444534,-500.0,0.00021917,2]
[358372178,1745009444544,-500.0,0.00021917,2]
[358372179,1745009444553,-500.0,0.00021917,2]
[358372180,1745009444563,-151.0,0.00021917,2]
[358372181,1745009444572,-151.0,0.00021917,2]
[358372182,1745009444582,-248.81107,0.00021917,2]
[358372183,1745009444591,-665.46,0.00021917,2]
[358372184,1745009444601,-1057.16,0.00021917,2]
[358372185,1745009444610,-500.0,0.00021917,2]
[358372186,1745009444620,-500.0,0.00021917,2]
[358372187,1745009444629,-500.0,0.00021917,2]
[358372188,1745009444639,-411.4,0.00021917,2]
[358372189,1745009444649,-617.94,0.00021917,2]
[358372190,1745009444659,-151.0,0.00021917,2]
[358372191,1745009444668,-1358.09,0.00021917,2]
[358372192,1745009444678,-151.0,0.00021917,2]
[358372193,1745009444688,-500.0,0.00021917,2]
[358372194,1745009444698,-151.0,0.00021917,2]
[358372195,1745009444708,-151.0,0.00021917,2]
[358372196,1745009444719,-151.0,0.00021917,2]
[358372197,1745009444728,-151.0,0.00021917,2]
[358372198,1745009444737,-696.13,0.00021917,2]
[358372199,1745009444747,-500.0,0.00021917,2]
[358372200,1745009444757,-500.0,0.00021917,2]
[358372201,1745009444766,-500.0,0.00021917,2]
[358372202,1745009444776,-500.0,0.00021917,2]
[358372203,1745009444785,-500.0,0.00021917,2]
[358372204,1745009444795,-500.0,0.00021917,2]
[358372205,1745009444805,-500.0,0.00021917,2]
[358372206,1745009444814,-500.0,0.00021917,2]
[358372207,1745009444824,-845.13,0.00021917,2]
[358372208,1745009444833,-500.0,0.00021917,2]
[358372209,1745009444843,-500.0,0.00021917,2]
[358372210,1745009444852,-500.0,0.00021917,2]
[358372211,1745009444866,-790.83,0.00021917,2]
[358372212,1745009444875,-500.0,0.00021917,2]
[358372213,1745009444885,-500.0,0.00021917,2]
[358372214,1745009444895,-500.0,0.00021917,2]
[358372215,1745009444906,-525.03,0.00021917,2]
[358372216,1745009444916,-501.28931018,0.00021917,2]
[358372217,1745009444926,-500.0,0.00021917,2]
[358372218,1745009444937,-1310.67,0.00021917,2]
[358372219,1745009444947,-500.0,0.00021917,2]
[358372220,1745009444956,-500.0,0.00021917,2]
[358372221,1745009444966,-500.0,0.00021917,2]
[358372222,1745009444975,-500.0,0.00021917,2]
[358372223,1745009444985,-500.0,0.00021917,2]
[358372224,1745009444995,-500.0,0.00021917,2]
[358372225,1745009445005,-500.0,0.00021917,2]
[358372226,1745009445015,-500.0,0.00021917,2]
[358372227,1745009445024,-500.0,0.00021917,2]
[358372228,1745009445034,-500.0,0.00021917,2]
[358372229,1745009445043,-500.0,0.00021917,2]
[358372230,1745009445052,-743.12,0.00021917,2]
[358372231,1745009445061,-500.0,0.00021917,2]
[358372232,1745009445071,-500.0,0.00021917,2]
[358372233,1745009445081,-561.56,0.00021917,2]
[358372234,1745009445090,-1295.06,0.00021917,2]
[358372235,1745009445100,-1024.06,0.00021917,2]
[358372236,1745009445110,-151.0,0.00021917,2]
[358372237,1745009445120,-151.0,0.00021917,2]
[358372238,1745009445130,-151.0,0.00021917,2]
[358372239,1745009445140,-151.0,0.00021917,2]
[358372240,1745009445150,-500.0,0.00021917,2]
[358372241,1745009445160,-151.0,0.00021917,2]
[358372242,1745009445170,-151.0,0.00021917,2]
[358372243,1745009445180,-151.0,0.00021917,2]
[358372244,1745009445190,-151.0,0.00021917,2]
[358372245,1745009445200,-500.0,0.00021917,2]
[358372246,1745009445211,-151.0,0.00021917,2]
[358372247,1745009445222,-500.0,0.00021917,2]
[358372248,1745009445232,-151.0,0.00021917,2]
[358372249,1745009445242,-500.0,0.00021917,2]
[358372250,1745009445251,-151.0,0.00021917,2]
[358372251,1745009445262,-500.0,0.00021917,2]
[358372252,1745009445271,-1750.83,0.00021917,2]
[358372253,1745009445281,-1694.87,0.00021917,2]
[358372254,1745009445291,-500.0,0.00021917,2]
[358372255,1745009445300,-500.0,0.00021917,2]
[358372256,1745009445310,-500.0,0.00021917,2]
[358372257,1745009445320,-1280.18,0.00021917,2]
[358372258,1745009445330,-500.0,0.00021917,2]
[358372259,1745009445339,-500.0,0.00021917,2]
[358372260,1745009445349,-500.0,0.00021917,2]
[358372261,1745009445359,-562.14,0.00021917,2]
[358372262,1745009445368,-500.0,0.00021917,2]
[358372263,1745009445378,-500.0,0.00021917,2]
[358372264,1745009445388,-500.0,0.00021917,2]
[358372265,1745009445398,-1115.86,0.00021917,2]
[358372266,1745009445408,-1405.6,0.00021917,2]
[358372267,1745009445417,-564.81,0.00021917,2]
[358372268,1745009445428,-500.0,0.00021917,2]
[358372269,1745009445437,-738.22,0.00021917,2]
[358372270,1745009445449,-415.0,0.00021917,2]
[358372271,1745009445458,-500.0,0.00021917,2]
[358372272,1745009445467,-500.0,0.00021917,2]
[358372273,1745009445477,-500.0,0.00021917,2]
[358372274,1745009445487,-732.94,0.00021917,2]
[358372275,1745009445496,-500.0,0.00021917,2]
[358372276,1745009445505,-1302.91,0.00021917,2]
[358372277,1745009445515,-500.0,0.00021917,2]
[358372278,1745009445524,-550.20824993,0.00021917,2]
[358372279,1745009445535,-500.0,0.00021917,2]
[358372280,1745009445546,-544.18,0.00021917,2]
[358372281,1745009445556,-804.47,0.00021917,2]
[358372282,1745009445565,-500.0,0.00021917,2]
[358372283,1745009445574,-500.0,0.00021917,2]
[358372284,1745009445583,-500.0,0.00021917,2]
[358372285,1745009445593,-1005.27,0.00021917,2]
[358372286,1745009445602,-500.0,0.00021917,2]
[358372287,1745009445611,-500.0,0.00021917,2]
[358372288,1745009445621,-500.0,0.00021917,2]
[358372289,1745009445630,-500.0,0.00021917,2]
[358372290,1745009445639,-641.99,0.00021917,2]
[358372291,1745009445651,-500.0,0.00021917,2]
[358372292,1745009445660,-500.0,0.00021917,2]
[358372293,1745009445671,-500.0,0.00021917,2]
[358372294,1745009445681,-500.0,0.00021917,2]
[358372295,1745009445692,-972.87,0.00021917,2]
[358372296,1745009445701,-500.0,0.00021917,2]
[358372297,1745009445710,-500.0,0.00021917,2]
[358372298,1745009445719,-12567.49,0.00021917,2]
[358372299,1745009445727,-500.0,0.00021917,2]
[358372300,1745009445736,-500.0,0.00021917,2]
[358372301,1745009445744,-500.0,0.00021917,2]
[358372302,1745009445753,-500.0,0.00021917,2]
[358372303,1745009445762,-500.0,0.00021917,2]
[358372304,1745009445771,-500.0,0.00021917,2]
[358372305,1745009445781,-500.0,0.00021917,2]
[358372307,1745009445790,-2516.32,0.00021917,2]
[358372309,1745009445800,-500.0,0.00021917,2]
[358372310,1745009445809,-652.4,0.00021917,2]
[358372311,1745009445818,-500.0,0.00021917,2]
[358372312,1745009445827,-3317.01,0.00021917,2]
[358372313,1745009445836,-500.0,0.00021917,2]
[358372314,1745009445847,-500.0,0.00021917,2]
[358372315,1745009445858,-991.85,0.00021917,2]
[358372316,1745009445867,-500.0,0.00021917,2]
[358372317,1745009445876,-3986.83,0.00021917,2]
[358372318,1745009445886,-1179.52,0.00021917,2]
[358372319,1745009445895,-500.0,0.00021917,2]
[358372320,1745009445904,-1998.18,0.00021917,2]
[358372321,1745009445913,-500.0,0.00021917,2]
[358372322,1745009445923,-1345.97,0.00021917,2]
[358372323,1745009445932,-697.27,0.00021917,2]
[358372324,1745009445941,-500.0,0.00021917,2]
[358372325,1745009445951,-500.0,0.00021917,2]
[358372326,1745009445961,-160.23151843,0.00021917,2]
[358372327,1745009445970,-500.0,0.00021917,2]
[358372328,1745009445979,-151.0,0.00021917,2]
[358372329,1745009445989,-500.0,0.00021917,2]
[358372330,1745009445999,-151.0,0.00021917,2]
[358372331,1745009446008,-500.0,0.00021917,2]
[358372332,1745009446019,-500.0,0.00021917,2]
[358372334,1745009446143,-500.0,0.00021917,2]
[358372335,1745009446170,-207.33791411,0.00021917,2]
[358372336,1745009446180,-500.0,0.00021917,2]
[358372337,1745009446190,-500.0,0.00021917,2]
[358372338,1745009446199,-1061.42,0.00021917,2]
[358372339,1745009446209,-500.0,0.00021917,2]
[358372340,1745009446218,-500.0,0.00021917,2]
[358372341,1745009446228,-151.0,0.00021917,2]
[358372342,1745009446237,-500.0,0.00021917,2]
[358372343,1745009446248,-500.0,0.00021917,2]
[358372344,1745009446258,-852.56,0.00021917,2]
[358372345,1745009446268,-647.97426686,0.00021917,2]
[358372346,1745009446277,-500.0,0.00021917,2]
[358372347,1745009446287,-500.0,0.00021917,2]
[358372348,1745009446296,-500.0,0.00021917,2]
[358372349,1745009446306,-500.0,0.00021917,2]
[358372350,1745009446316,-2519.52,0.00021917,2]
[358372351,1745009446326,-1332.28,0.00021917,2]
[358372352,1745009446335,-500.0,0.00021917,2]
[358372353,1745009446344,-647.68,0.00021917,2]
[358372354,1745009446354,-500.0,0.00021917,2]
[358372355,1745009446363,-635.97,0.00021917,2]
[358372356,1745009446372,-551.69,0.00021917,2]
[358372357,1745009446381,-1358.94,0.00021917,2]
[358372358,1745009446390,-500.0,0.00021917,2]
[358372359,1745009446400,-500.0,0.00021917,2]
[358372360,1745009446409,-500.0,0.00021917,2]
[358372361,1745009446419,-699.03,0.00021917,2]
[358372362,1745009446429,-500.0,0.00021917,2]
[358372363,1745009446438,-1128.65,0.00021917,2]
[358372364,1745009446448,-500.0,0.00021917,2]
[358372365,1745009446458,-500.0,0.00021917,2]
[358372366,1745009446467,-944.0,0.00021917,2]
[358372367,1745009446476,-500.0,0.00021917,2]
[358372368,1745009446486,-500.0,0.00021917,2]
[358372369,1745009446496,-500.0,0.00021917,2]
[358372370,1745009446504,-500.0,0.00021917,2]
[358372371,1745009446514,-500.0,0.00021917,2]
[358372372,1745009446524,-500.0,0.00021917,2]
[358372373,1745009446534,-7602.4,0.00021917,2]
[358372374,1745009446544,-3156.97,0.00021917,2]
[358372375,1745009446555,-500.0,0.00021917,2]
[358372376,1745009446564,-500.0,0.00021917,2]
[358372377,1745009446573,-500.0,0.00021917,2]
[358372379,1745009446583,-791.57,0.00021917,2]
[358372381,1745009446592,-500.0,0.00021917,2]
[358372383,1745009446602,-151.0,0.00021917,2]
[358372385,1745009446612,-153.062928,0.00021917,2]
[358372387,1745009446621,-750.55,0.00021917,2]
[358372389,1745009446631,-500.0,0.00021917,2]
[358372391,1745009446641,-500.0,0.00021917,2]
[358372392,1745009446651,-500.0,0.00021917,2]
[358372393,1745009446661,-500.0,0.00021917,2]
[358372394,1745009446671,-500.0,0.00021917,2]
[358372395,1745009446681,-151.0,0.00021917,2]
[358372396,1745009446692,-151.0,0.00021917,2]
[358372397,1745009446702,-151.0,0.00021917,2]
[358372398,1745009446711,-151.0,0.00021917,2]
[358372399,1745009446721,-151.0,0.00021917,2]
[358372400,1745009446730,-159.318754,0.00021917,2]
[358372401,1745009446742,-500.0,0.00021917,2]
[358372402,1745009446751,-500.0,0.00021917,2]
[358372403,1745009446761,-500.0,0.00021917,2]
[358372404,1745009446770,-12500.0,0.00021917,2]
[358372405,1745009446780,-500.0,0.00021917,2]
[358372406,1745009446790,-500.0,0.00021917,2]
[358372407,1745009446799,-1130.17,0.00021917,2]
[358372408,1745009446809,-448.90552163,0.00021917,2]
[358372409,1745009446818,-587.65,0.00021917,2]
[358372410,1745009446828,-8286.27,0.00021917,2]
[358372411,1745009446839,-500.0,0.00021917,2]
[358372412,1745009446848,-500.0,0.00021917,2]
[358372413,1745009446860,-1703.93,0.00021917,2]
[358372414,1745009446869,-549.79,0.00021917,2]
[358372415,1745009446879,-500.0,0.00021917,2]
[358372416,1745009446888,-500.0,0.00021917,2]
[358372417,1745009446899,-500.0,0.00021917,2]
[358372418,1745009446909,-26835.23,0.00021917,2]
[358372419,1745009446919,-500.0,0.00021917,2]
[358372420,1745009446928,-576.9026242,0.00021917,2]
[358372421,1745009446939,-500.0,0.00021917,2]
[358372422,1745009446949,-512.57,0.00021917,2]
[358372423,1745009446959,-502.38367321,0.00021917,2]
[358372424,1745009446969,-500.0,0.00021917,2]
[358372425,1745009446979,-500.0,0.00021917,2]
[358372426,1745009446989,-544.22,0.00021917,2]
[358372427,1745009446999,-500.0,0.00021917,2]
[358372428,1745009447008,-1787.31,0.00021917,2]
[358372429,1745009447017,-500.0,0.00021917,2]
[358372430,1745009447027,-587.03597788,0.00021917,2]
[358372431,1745009447036,-500.0,0.00021917,2]
[358372432,1745009447045,-1375.34,0.00021917,2]
[358372433,1745009447054,-151.0,0.00021917,2]
[358372434,1745009447063,-500.0,0.00021917,2]
[358372435,1745009447072,-500.0,0.00021917,2]
[358372436,1745009447081,-500.0,0.00021917,2]
[358372437,1745009447090,-500.0,0.00021917,2]
[358372438,1745009447099,-500.0,0.00021917,2]
[358372439,1745009447109,-500.0,0.00021917,2]
[358372440,1745009447118,-500.0,0.00021917,2]
[358372441,1745009447127,-500.0,0.00021917,2]
[358372442,1745009447137,-500.0,0.00021917,2]
[358372443,1745009447146,-500.0,0.00021917,2]
[358372444,1745009447155,-500.0,0.00021917,2]
[358372445,1745009447165,-8305.5,0.00021917,2]
[358372446,1745009447175,-500.0,0.00021917,2]
[358372447,1745009447184,-500.0,0.00021917,2]
[358372448,1745009447194,-810.39,0.00021917,2]
[358372449,1745009447204,-500.0,0.00021917,2]
[358372450,1745009447214,-709.45,0.00021917,2]
[358372451,1745009447223,-500.0,0.00021917,2]
[358372452,1745009447233,-500.0,0.00021917,2]
[358372453,1745009447243,-500.0,0.00021917,2]
[358372454,1745009447252,-500.0,0.00021917,2]
[358372455,1745009447262,-500.0,0.00021917,2]
[358372456,1745009447272,-500.0,0.00021917,2]
[358372457,1745009447282,-151.0,0.00021917,2]
[358372458,1745009447292,-151.0,0.00021917,2]
[358372459,1745009447302,-151.0,0.00021917,2]
[358372460,1745009447312,-151.0,0.00021917,2]
[358372461,1745009447322,-151.0,0.00021917,2]
[358372462,1745009447332,-151.0,0.00021917,2]
[358372463,1745009447342,-500.0,0.00021917,2]
[358372464,1745009447352,-959.77,0.00021917,2]
[358372465,1745009447363,-500.0,0.00021917,2]
[358372466,1745009447372,-500.0,0.00021917,2]
[358372467,1745009447382,-500.0,0.00021917,2]
[358372468,1745009447392,-849.1,0.00021917,2]
[358372469,1745009447402,-515.1,0.00021917,2]
[358372470,1745009447411,-500.0,0.00021917,2]
[358372471,1745009447421,-500.0,0.00021917,2]
[358372472,1745009447430,-1538.47,0.00021917,2]
[358372473,1745009447440,-500.0,0.00021917,2]
[358372474,1745009447450,-500.0,0.00021917,2]
[358372475,1745009447459,-922.55,0.00021917,2]
[358372476,1745009447468,-500.0,0.00021917,2]
[358372477,1745009447478,-611.96,0.00021917,2]
[358372478,1745009447487,-500.0,0.00021917,2]
[358372479,1745009447500,-412.69751354,0.00021917,2]
[358372480,1745009447509,-500.0,0.00021917,2]
[358372481,1745009447519,-500.0,0.00021917,2]
[358372482,1745009447528,-500.0,0.00021917,2]
[358372483,1745009447539,-500.0,0.00021917,2]
[358372484,1745009447549,-500.0,0.00021917,2]
[358372485,1745009447558,-737.45,0.00021917,2]
[358372486,1745009447569,-500.0,0.00021917,2]
[358372487,1745009447578,-500.0,0.00021917,2]
[358372488,1745009447588,-500.0,0.00021917,2]
[358372489,1745009447598,-500.0,0.00021917,2]
[358372490,1745009447607,-500.0,0.00021917,2]
[358372491,1745009447617,-1235.013649,0.00021918,2]
[358372492,1745009447627,-151.0,0.00021918,2]
[358372493,1745009447636,-151.0,0.00021918,2]
[358372494,1745009447645,-151.0,0.00021918,2]
[358372495,1745009447655,-151.0,0.00021918,2]
[358372496,1745009447665,-151.0,0.00021918,2]
[358372497,1745009447674,-151.0,0.00021918,2]
[358372498,1745009447684,-525.11952671,0.00021918,7]
[358372499,1745009447694,-500.0,0.00021973,2]
[358372500,1745009447703,-500.0,0.00021973,2]
[358372501,1745009447713,-502.20732899,0.00021973,2]
[358372502,1745009447722,-500.0,0.00021973,2]
[358372503,1745009447732,-500.0,0.00021973,2]
[358372504,1745009447744,-528.34585216,0.00021973,2]
[358372505,1745009447753,-160.46189913,0.00021973,2]
[358372506,1745009447763,-500.0,0.00021973,2]
[358372507,1745009447773,-500.0,0.00021973,2]
[358372508,1745009447783,-500.0,0.00021973,2]
[358372509,1745009447793,-500.0,0.00021973,2]
[358372510,1745009447802,-500.0,0.00021973,2]
[358372511,1745009447811,-500.86136279,0.00021973,2]
[358372512,1745009447820,-500.48828532,0.00021973,2]
[358372513,1745009447830,-500.0,0.00021973,2]
[358372514,1745009447839,-500.0,0.00021973,2]
[358372515,1745009447848,-500.0,0.00021973,2]
[358372516,1745009447857,-203.20521548,0.00021973,2]
[358372517,1745009447866,-251.65259121,0.00021973,2]
[358372518,1745009447879,-500.0,0.00021973,2]
[358372519,1745009447888,-500.0,0.00021973,2]
[358372520,1745009447898,-500.0,0.00021973,2]
[358372521,1745009447907,-500.0,0.00021973,2]
[358372522,1745009447918,-500.0,0.00021973,2]
[358372523,1745009447927,-500.0,0.00021973,2]
[358372524,1745009447937,-574.93472334,0.00021973,2]
[358372525,1745009447946,-500.0,0.00021973,2]
[358372526,1745009447956,-500.0,0.00021973,2]
[358372527,1745009447965,-500.0,0.00021973,2]
[358372528,1745009447975,-403.0113861,0.00021973,2]
[358372529,1745009447985,-500.0,0.00021973,2]
[358372530,1745009447996,-500.0,0.00021973,2]
[358372531,1745009448006,-443.19438905,0.00021973,2]
[358372532,1745009448015,-500.0,0.00021973,2]
[358372533,1745009448025,-500.0,0.00021973,2]
[358372534,1745009448035,-500.0,0.00021973,2]
[358372535,1745009448045,-500.0,0.00021973,2]
[358372536,1745009448054,-500.0,0.00021973,2]
[358372537,1745009448064,-500.0,0.00021973,2]
[358372538,1745009448073,-500.0,0.00021973,2]
[358372539,1745009448082,-500.0,0.00021973,2]
[358372540,1745009448092,-500.0,0.00021973,2]
[358372541,1745009448101,-500.0,0.00021973,2]
[358372542,1745009448110,-500.0,0.00021973,2]
[358372543,1745009448120,-500.0,0.00021973,2]
[358372544,1745009448130,-500.0,0.00021973,2]
[358372545,1745009448140,-528.48879024,0.00021973,2]
[358372546,1745009448150,-500.0,0.00021973,2]
[358372547,1745009448160,-500.0,0.00021973,2]
[358372548,1745009448170,-500.0,0.00021973,2]
[358372549,1745009448182,-500.0,0.00021973,2]
[358372550,1745009448192,-1490.10523062,0.0002198,2]
[358372551,1745009448202,-500.0,0.00021984,2]
[358372552,1745009448212,-204.0,0.0002199,2]
[358372553,1745009448223,-18501.98963503,0.00022,2]
[358372554,1745009448233,-5578.66772662,0.00022,3]
[358372555,1745009448244,-96727.96343704,0.00022,2]
[358372556,1745009448255,-75631.59107253,0.00022,2]
[358372557,1745009448265,-5000.0,0.00022,4]
[358372558,1745009448275,-3325.0,0.00022,2]
[358372559,1745009448285,-348.32293627,0.00022,2]
[358372560,1745009448294,-1000.0,0.00022,2]
[358372561,1745009448304,-880.0,0.00022,2]
[358372562,1745009448314,-151.0,0.00022,3]
[358372563,1745009448323,-208.188436,0.00022,7]
[358372564,1745009448334,-151.0,0.00022,7]
[358372565,1745009448344,-151.0,0.00022,7]
[358372566,1745009448355,-151.0,0.00022,7]
[358372567,1745009448365,-151.0,0.00022,7]
[358372568,1745009448375,-809.251229,0.00022,7]
[358372569,1745009448385,-809.251229,0.00022,7]
[358372570,1745009448394,-460.437239,0.00022,2]
[358372571,1745009448404,-460.437239,0.00022,2]
[358372572,1745009448413,-1000.0,0.00022,14]
[358372573,1745009448423,-1000.0,0.00022,14]
[358372574,1745009448432,-1000.0,0.00022,14]
[358372575,1745009448442,-1000.0,0.00022,14]
[358372576,1745009448452,-1000.0,0.00022,14]
[358372577,1745009448461,-1000.0,0.00022,14]
[358372578,1745009448471,-1000.0,0.00022,14]
[358372579,1745009448480,-1000.0,0.00022,14]
[358372580,1745009448490,-1000.0,0.00022,14]
[358372581,1745009448501,-1000.0,0.00022,14]
[358372582,1745009448511,-1000.0,0.00022,14]
[358372583,1745009448521,-1000.0,0.00022,14]
[358372584,1745009448530,-1000.0,0.00022,14]
[358372585,1745009448540,-1000.0,0.00022,14]
[358372586,1745009448549,-1000.0,0.00022,14]
[358372587,1745009448559,-1000.0,0.00022,14]
[358372588,1745009448569,-1000.0,0.00022,14]
[358372589,1745009448579,-1000.0,0.00022,14]
[358372590,1745009448588,-1000.0,0.00022,14]
[358372591,1745009448598,-1000.0,0.00022,14]